[Event "*** Titled Tuesday Blitz"]
[Site "Chess.com"]
[Date "2018.01.02"]
[Round "3"]
[White "bascheyaro"]
[Black "littleozy"]
[Result "1-0"]
[WhiteElo "2558"]
[BlackElo "2378"]
[TimeControl "180+2"]
[EndTime "13:40:02 PST"]
[Termination "bascheyaro won by resignation"]

1. d4 {[%clk 0:03:01.4]} 1... Nf6 {[%clk 0:03:00.9]} 2. c4 {[%clk 0:03:02.4]}
2... e6 {[%clk 0:03:02]} 3. Nf3 {[%clk 0:03:03.8]} 3... b6 {[%clk 0:03:01.2]} 4.
Bg5 {[%clk 0:03:04.3]} 4... Bb7 {[%clk 0:03:00.3]} 5. Nc3 {[%clk 0:03:05]} 5...
Be7 {[%clk 0:03:00.7]} 6. e3 {[%clk 0:03:06.4]} 6... h6 {[%clk 0:02:59]} 7. Bh4
{[%clk 0:03:07.2]} 7... d5 {[%clk 0:02:59.7]} 8. cxd5 {[%clk 0:03:07.1]} 8...
Nxd5 {[%clk 0:02:53.9]} 9. Bxe7 {[%clk 0:03:09]} 9... Nxe7 {[%clk 0:02:53.8]}
10. Bd3 {[%clk 0:03:09]} 10... O-O {[%clk 0:02:54.3]} 11. O-O {[%clk 0:03:09.4]}
11... Nd7 {[%clk 0:02:53.2]} 12. Qc2 {[%clk 0:03:08.5]} 12... c5 {[%clk
0:02:51.3]} 13. dxc5 {[%clk 0:03:07.9]} 13... Nxc5 {[%clk 0:02:50.7]} 14. Be2
{[%clk 0:03:09.1]} 14... Qc8 {[%clk 0:02:20.7]} 15. Rac1 {[%clk 0:03:09]} 15...
a6 {[%clk 0:02:17.2]} 16. Rfd1 {[%clk 0:03:07.6]} 16... Rd8 {[%clk 0:02:16.3]}
17. b4 {[%clk 0:03:04.4]} 17... Rxd1+ {[%clk 0:02:12.8]} 18. Nxd1 {[%clk
0:03:06.3]} 18... Nd7 {[%clk 0:02:09.4]} 19. Qb2 {[%clk 0:03:06]} 19... Qd8
{[%clk 0:02:09.9]} 20. Nc3 {[%clk 0:03:05.6]} 20... Nf6 {[%clk 0:02:06.9]} 21.
Rd1 {[%clk 0:03:01.3]} 21... Qe8 {[%clk 0:02:06.3]} 22. Ne5 {[%clk 0:02:46.1]}
22... Ned5 {[%clk 0:01:59.9]} 23. Nxd5 {[%clk 0:02:41.2]} 23... Bxd5 {[%clk
0:01:59.8]} 24. f3 {[%clk 0:02:39.2]} 24... Qa4 {[%clk 0:01:51.8]} 25. a3 {[%clk
0:02:33.8]} 25... a5 {[%clk 0:00:57.6]} 26. e4 {[%clk 0:02:30.9]} 26... axb4
{[%clk 0:00:46.5]} 27. exd5 {[%clk 0:02:27.2]} 27... bxa3 {[%clk 0:00:47.5]} 28.
Qxb6 {[%clk 0:02:09.3]} 28... Nxd5 {[%clk 0:00:47.5]} 29. Qb7 {[%clk 0:02:09.4]}
29... Ra7 {[%clk 0:00:25.2]} 30. Qc8+ {[%clk 0:01:39.5]} 30... Kh7 {[%clk
0:00:25.2]} 31. Bd3+ {[%clk 0:01:23.8]} 31... g6 {[%clk 0:00:24.2]} 32. Bc2
{[%clk 0:01:24.5]} 32... Qf4 {[%clk 0:00:20.9]} 33. Bxg6+ {[%clk 0:00:47.3]}
33... fxg6 {[%clk 0:00:18.3]} 34. Qxe6 {[%clk 0:00:48.2]} 34... Nf6 {[%clk
0:00:12.9]} 35. Nd7 {[%clk 0:00:29.7]} 35... Nxd7 {[%clk 0:00:02.5]} 36. Rxd7+
{[%clk 0:00:25.3]} 36... Rxd7 {[%clk 0:00:04.4]} 37. Qxd7+ {[%clk 0:00:27.1]}
37... Kg8 {[%clk 0:00:05.8]} 38. Qe8+ {[%clk 0:00:27.6]} 38... Kg7 {[%clk
0:00:06.7]} 39. Qe7+ {[%clk 0:00:28.5]} 39... Qf7 {[%clk 0:00:07.7]} 40. Qxa3
{[%clk 0:00:30.4]} 40... Qd7 {[%clk 0:00:07]} 41. Qc3+ {[%clk 0:00:30.6]} 41...
Kh7 {[%clk 0:00:08.1]} 42. Kf2 {[%clk 0:00:31.7]} 42... h5 {[%clk 0:00:09.3]}
43. Qe3 {[%clk 0:00:29.2]} 43... Qd6 {[%clk 0:00:09.8]} 44. g3 {[%clk
0:00:28.2]} 44... Qc7 {[%clk 0:00:09.2]} 45. Qe2 {[%clk 0:00:28.3]} 45... Qc5+
{[%clk 0:00:09.9]} 46. Kg2 {[%clk 0:00:29.7]} 46... Qc7 {[%clk 0:00:10.8]} 47.
Qe4 {[%clk 0:00:28.3]} 47... Qd7 {[%clk 0:00:09.8]} 48. Qe3 {[%clk 0:00:23.2]}
48... Qc7 {[%clk 0:00:10.6]} 49. Qd3 {[%clk 0:00:23]} 49... Qb7 {[%clk
0:00:09.6]} 50. Qc2 {[%clk 0:00:23.9]} 50... Qe7 {[%clk 0:00:10.2]} 51. h4
{[%clk 0:00:22.8]} 51... Qd7 {[%clk 0:00:09.4]} 52. Kh2 {[%clk 0:00:22.3]} 52...
Qe7 {[%clk 0:00:07.3]} 53. Qe4 {[%clk 0:00:22.9]} 53... Qc7 {[%clk 0:00:07.7]}
54. Kh3 {[%clk 0:00:23.4]} 54... Qd7+ {[%clk 0:00:07.6]} 55. g4 {[%clk
0:00:24.6]} 55... hxg4+ {[%clk 0:00:08.7]} 56. Qxg4 {[%clk 0:00:25.6]} 56... Qc7
{[%clk 0:00:05.6]} 57. h5 {[%clk 0:00:21.1]} 57... gxh5 {[%clk 0:00:05.7]} 58.
Qxh5+ {[%clk 0:00:23]} 58... Kg7 {[%clk 0:00:06.6]} 59. Qg5+ {[%clk 0:00:24.4]}
59... Kf8 {[%clk 0:00:06]} 60. Kg4 {[%clk 0:00:25.5]} 60... Qa7 {[%clk
0:00:02.2]} 61. Qh6+ {[%clk 0:00:26.5]} 61... Kg8 {[%clk 0:00:03.4]} 62. Qg6+
{[%clk 0:00:27.7]} 62... Kf8 {[%clk 0:00:04.7]} 63. f4 {[%clk 0:00:27.8]} 63...
Qa6 {[%clk 0:00:05.6]} 64. Qxa6 {[%clk 0:00:27.7]} 1-0

[Event "*** Titled Tuesday Blitz"]
[Site "Chess.com"]
[Date "2018.01.02"]
[Round "3"]
[White "Andrejs_Sokolov"]
[Black "GrigorGrigorov"]
[Result "1/2-1/2"]
[WhiteElo "2618"]
[BlackElo "2606"]
[TimeControl "180+2"]
[EndTime "13:40:11 PST"]
[Termination "Game drawn by agreement"]

1. d4 {[%clk 0:03:00.3]} 1... Nf6 {[%clk 0:02:59.2]} 2. Nf3 {[%clk 0:03:01.6]}
2... e6 {[%clk 0:02:57.6]} 3. g3 {[%clk 0:03:02.8]} 3... b6 {[%clk 0:02:54.6]}
4. Bg2 {[%clk 0:03:04.2]} 4... Bb7 {[%clk 0:02:56.1]} 5. O-O {[%clk 0:03:05.7]}
5... Be7 {[%clk 0:02:57.1]} 6. c4 {[%clk 0:03:07.2]} 6... O-O {[%clk 0:02:57.9]}
7. Nc3 {[%clk 0:03:08.1]} 7... Ne4 {[%clk 0:02:58.7]} 8. Qc2 {[%clk 0:03:08.9]}
8... Nxc3 {[%clk 0:02:58.4]} 9. bxc3 {[%clk 0:03:10.3]} 9... f5 {[%clk
0:02:29.9]} 10. d5 {[%clk 0:03:10.6]} 10... Na6 {[%clk 0:02:26.6]} 11. Nd4
{[%clk 0:03:09.3]} 11... Nc5 {[%clk 0:02:18.8]} 12. Rd1 {[%clk 0:03:08.7]} 12...
exd5 {[%clk 0:02:07.5]} 13. Nxf5 {[%clk 0:02:57.4]} 13... Bf6 {[%clk 0:01:34.6]}
14. cxd5 {[%clk 0:02:51.2]} 14... Bxc3 {[%clk 0:01:28.3]} 15. Nh6+ {[%clk
0:02:39.7]} 15... gxh6 {[%clk 0:01:27.8]} 16. Qxc3 {[%clk 0:02:40.3]} 16... Qf6
{[%clk 0:01:21.6]} 17. Bb2 {[%clk 0:02:26.1]} 17... Qxc3 {[%clk 0:01:15.8]} 18.
Bxc3 {[%clk 0:02:27]} 18... Rae8 {[%clk 0:01:17.3]} 19. e3 {[%clk 0:02:12.1]}
19... d6 {[%clk 0:01:18.5]} 20. Rd4 {[%clk 0:02:08.7]} 20... Bc8 {[%clk
0:01:18]} 21. e4 {[%clk 0:02:00.1]} 21... Rf7 {[%clk 0:01:13.2]} 22. f3 {[%clk
0:01:56.2]} 22... a5 {[%clk 0:01:09.3]} 23. Re1 {[%clk 0:01:56.2]} 23... Ba6
{[%clk 0:01:09.3]} 24. Re3 {[%clk 0:01:55]} 24... Bb5 {[%clk 0:01:09.8]} 25. f4
{[%clk 0:01:51.9]} 25... Rfe7 {[%clk 0:01:07.8]} 26. e5 {[%clk 0:01:44.2]} 26...
dxe5 {[%clk 0:01:07.1]} 27. fxe5 {[%clk 0:01:45.1]} 27... Rxe5 {[%clk
0:01:07.4]} 28. Rxe5 {[%clk 0:01:34.4]} 28... Rxe5 {[%clk 0:01:07.9]} 29. d6
{[%clk 0:01:33]} 29... cxd6 {[%clk 0:00:58.2]} 30. Rxd6 {[%clk 0:01:33.7]} 30...
Re3 {[%clk 0:00:52.3]} 31. Bf6 {[%clk 0:00:46]} 31... Re1+ {[%clk 0:00:39.8]}
32. Kf2 {[%clk 0:00:46]} 32... Re2+ {[%clk 0:00:41.2]} 33. Kg1 {[%clk
0:00:46.8]} 33... Re1+ {[%clk 0:00:26.4]} 34. Kf2 {[%clk 0:00:47.6]} 34... Ne4+
{[%clk 0:00:23.7]} 35. Bxe4 {[%clk 0:00:45.2]} 35... Rxe4 {[%clk 0:00:25.6]} 36.
Rxb6 {[%clk 0:00:45.6]} 36... Bc4 {[%clk 0:00:22.3]} 37. a3 {[%clk 0:00:32.6]}
37... Kf7 {[%clk 0:00:21.4]} 38. Bc3 {[%clk 0:00:27.6]} 38... Re2+ {[%clk
0:00:17.5]} 39. Kf3 {[%clk 0:00:27.9]} 39... Rxh2 {[%clk 0:00:16.4]} 40. Bxa5
{[%clk 0:00:28.4]} 40... Bd5+ {[%clk 0:00:16.4]} 41. Kf4 {[%clk 0:00:27.3]}
41... Be6 {[%clk 0:00:14.1]} 42. Bc3 {[%clk 0:00:21.3]} 42... Rf2+ {[%clk
0:00:13.1]} 43. Ke3 {[%clk 0:00:21.5]} 43... Rc2 {[%clk 0:00:10.5]} 44. Bb4
{[%clk 0:00:22]} 44... Ra2 {[%clk 0:00:06.1]} 45. Rb7+ {[%clk 0:00:20.3]} 45...
Kg6 {[%clk 0:00:06.9]} 46. Kf4 {[%clk 0:00:21.3]} 46... Ra1 {[%clk 0:00:07.3]}
47. Rb6 {[%clk 0:00:21.8]} 47... Kf7 {[%clk 0:00:07.7]} 48. Rb7+ {[%clk
0:00:22.2]} 48... Kg6 {[%clk 0:00:08]} 49. Ra7 {[%clk 0:00:22.5]} 49... Rf1+
{[%clk 0:00:07.3]} 50. Ke5 {[%clk 0:00:23.1]} 50... Bb3 {[%clk 0:00:07.8]} 51.
Bc3 {[%clk 0:00:20.9]} 51... Rf5+ {[%clk 0:00:08.2]} 52. Kd6 {[%clk 0:00:19.3]}
52... Rf3 {[%clk 0:00:08.1]} 53. Rg7+ {[%clk 0:00:17.9]} 53... Kf5 {[%clk
0:00:08.7]} 54. Bd4 {[%clk 0:00:15.7]} 54... Ke4 {[%clk 0:00:08.8]} 55. Bb2
{[%clk 0:00:13.1]} 55... Rf2 {[%clk 0:00:06.7]} 56. Bc3 {[%clk 0:00:12.7]} 56...
Rf3 {[%clk 0:00:07.2]} 57. Bb2 {[%clk 0:00:13.6]} 57... Rf7 {[%clk 0:00:07.3]}
58. Rxf7 {[%clk 0:00:13.5]} 58... Bxf7 {[%clk 0:00:09.2]} 59. Be5 {[%clk
0:00:14.2]} 59... h5 {[%clk 0:00:09]} 60. Bf6 {[%clk 0:00:14.7]} 60... Be8
{[%clk 0:00:09.4]} 61. Kc5 {[%clk 0:00:15.2]} 61... Kf5 {[%clk 0:00:09.8]} 62.
Bh4 {[%clk 0:00:15.9]} 62... Ke6 {[%clk 0:00:10.1]} 63. Kb4 {[%clk 0:00:16.4]}
63... Kd5 {[%clk 0:00:11.1]} 64. a4 {[%clk 0:00:17.4]} 64... Kc6 {[%clk
0:00:12.4]} 65. a5 {[%clk 0:00:18.5]} 65... Kb7 {[%clk 0:00:13.2]} 66. Bg5
{[%clk 0:00:18.3]} 66... Bd7 {[%clk 0:00:14.4]} 67. Bd2 {[%clk 0:00:19.6]} 67...
Bg4 {[%clk 0:00:15.2]} 68. Be1 {[%clk 0:00:20.9]} 1/2-1/2

[Event "*** Titled Tuesday Blitz"]
[Site "Chess.com"]
[Date "2018.01.02"]
[Round "3"]
[White "jbj"]
[Black "jposthuma"]
[Result "1-0"]
[WhiteElo "2257"]
[BlackElo "2337"]
[TimeControl "180+2"]
[EndTime "13:40:51 PST"]
[Termination "jbj won by checkmate"]

1. e4 {[%clk 0:03:01.9]} 1... c6 {[%clk 0:03:00.7]} 2. d4 {[%clk 0:03:03]} 2...
d5 {[%clk 0:03:02.6]} 3. Nc3 {[%clk 0:03:04.6]} 3... dxe4 {[%clk 0:03:03.7]} 4.
Nxe4 {[%clk 0:03:06.5]} 4... Nf6 {[%clk 0:03:05]} 5. Ng3 {[%clk 0:03:07.1]} 5...
h5 {[%clk 0:03:05.4]} 6. h4 {[%clk 0:03:07.3]} 6... Bg4 {[%clk 0:03:06.6]} 7.
Be2 {[%clk 0:03:07.8]} 7... e6 {[%clk 0:03:03.2]} 8. c3 {[%clk 0:03:08.9]} 8...
Bd6 {[%clk 0:03:03.2]} 9. Bxg4 {[%clk 0:03:06.8]} 9... hxg4 {[%clk 0:02:47]} 10.
N1e2 {[%clk 0:03:07.8]} 10... Nd5 {[%clk 0:02:34.1]} 11. c4 {[%clk 0:02:55]}
11... Bb4+ {[%clk 0:02:00.8]} 12. Bd2 {[%clk 0:02:52]} 12... Bxd2+ {[%clk
0:02:00.7]} 13. Qxd2 {[%clk 0:02:53]} 13... Nb6 {[%clk 0:02:01.3]} 14. b3 {[%clk
0:02:26.5]} 14... N8d7 {[%clk 0:01:44.5]} 15. Qf4 {[%clk 0:02:17.1]} 15... Rxh4
{[%clk 0:01:40.2]} 16. O-O-O {[%clk 0:02:17.2]} 16... g5 {[%clk 0:01:28.8]} 17.
Qe3 {[%clk 0:01:51.7]} 17... Qe7 {[%clk 0:00:51.9]} 18. Ne4 {[%clk 0:01:52.7]}
18... O-O-O {[%clk 0:00:25.3]} 19. Qxg5 {[%clk 0:01:53.1]} 19... Qa3+ {[%clk
0:00:21.1]} 20. Kb1 {[%clk 0:01:54.3]} 20... Rxh1 {[%clk 0:00:16.5]} 21. Rxh1
{[%clk 0:01:56.2]} 21... Nxc4 {[%clk 0:00:03.9]} 22. bxc4 {[%clk 0:01:50.1]}
22... Nb6 {[%clk 0:00:03.5]} 23. Qc1 {[%clk 0:01:46.1]} 23... Qb4+ {[%clk
0:00:03.3]} 24. Qb2 {[%clk 0:01:44.3]} 24... Qxc4 {[%clk 0:00:04.3]} 25. Rc1
{[%clk 0:01:38]} 25... Qd3+ {[%clk 0:00:05.3]} 26. Qc2 {[%clk 0:01:39.3]} 26...
Qa3 {[%clk 0:00:06.5]} 27. Qb3 {[%clk 0:01:38.8]} 27... Qa5 {[%clk 0:00:06.5]}
28. Nc5 {[%clk 0:01:32.2]} 28... Qd2 {[%clk 0:00:04.4]} 29. Qb2 {[%clk
0:01:21.4]} 29... Qa5 {[%clk 0:00:02.8]} 30. Qc3 {[%clk 0:01:06.5]} 30... Qb5+
{[%clk 0:00:02.8]} 31. Qb2 {[%clk 0:01:06.5]} 31... Qa5 {[%clk 0:00:02.8]} 32.
Ka1 {[%clk 0:01:07.3]} 32... e5 {[%clk 0:00:02.8]} 33. Qc3 {[%clk 0:01:02.7]}
33... Qxc3+ {[%clk 0:00:03]} 34. Rxc3 {[%clk 0:01:03]} 34... exd4 {[%clk
0:00:04.6]} 35. Rd3 {[%clk 0:01:03.7]} 35... Nd5 {[%clk 0:00:04]} 36. Rxd4
{[%clk 0:01:03.6]} 36... f5 {[%clk 0:00:04.9]} 37. Nf4 {[%clk 0:00:53]} 37...
Nxf4 {[%clk 0:00:02.7]} 38. Rxf4 {[%clk 0:00:53.8]} 38... Rd5 {[%clk 0:00:03.9]}
39. Ne6 {[%clk 0:00:52.1]} 39... Kd7 {[%clk 0:00:02.9]} 40. Ng7 {[%clk
0:00:52.8]} 40... Ke7 {[%clk 0:00:02.7]} 41. Nxf5+ {[%clk 0:00:52.5]} 41... Ke6
{[%clk 0:00:02.3]} 42. Ne3 {[%clk 0:00:53]} 42... Rd2 {[%clk 0:00:03.5]} 43.
Nxg4 {[%clk 0:00:52.3]} 43... c5 {[%clk 0:00:03.5]} 44. Ne3 {[%clk 0:00:53.1]}
44... b5 {[%clk 0:00:03.7]} 45. Kb1 {[%clk 0:00:50.8]} 45... c4 {[%clk
0:00:04.6]} 46. g4 {[%clk 0:00:49.6]} 46... c3 {[%clk 0:00:04.9]} 47. Rf5 {[%clk
0:00:47.1]} 47... b4 {[%clk 0:00:03.6]} 48. Rb5 {[%clk 0:00:45.4]} 48... Rb2+
{[%clk 0:00:04.1]} 49. Kc1 {[%clk 0:00:46.6]} 49... Rxf2 {[%clk 0:00:03.6]} 50.
Rxb4 {[%clk 0:00:47.4]} 50... Rxa2 {[%clk 0:00:04.2]} 51. Rc4 {[%clk 0:00:47.3]}
51... Ra1+ {[%clk 0:00:02.7]} 52. Kc2 {[%clk 0:00:48]} 52... Rg1 {[%clk
0:00:03.4]} 53. Rxc3 {[%clk 0:00:49.1]} 53... a5 {[%clk 0:00:03.7]} 54. Kd3
{[%clk 0:00:50.2]} 54... Ke5 {[%clk 0:00:04.5]} 55. Rc5+ {[%clk 0:00:50.4]}
55... Kf4 {[%clk 0:00:04.9]} 56. Rf5+ {[%clk 0:00:51.5]} 56... Kg3 {[%clk
0:00:05]} 57. Rxa5 {[%clk 0:00:52.3]} 57... Kh4 {[%clk 0:00:02.9]} 58. Rh5+
{[%clk 0:00:49.9]} 58... Kg3 {[%clk 0:00:04]} 59. Ke4 {[%clk 0:00:50.2]} 59...
Ra1 {[%clk 0:00:04.5]} 60. Rd5 {[%clk 0:00:49.8]} 60... Ra4+ {[%clk 0:00:04]}
61. Rd4 {[%clk 0:00:50.7]} 61... Ra5 {[%clk 0:00:05.3]} 62. Rd3 {[%clk
0:00:44.9]} 62... Kh4 {[%clk 0:00:06]} 63. Kf3 {[%clk 0:00:43.1]} 63... Ra8
{[%clk 0:00:05.9]} 64. Rd5 {[%clk 0:00:43.2]} 64... Rf8+ {[%clk 0:00:06.2]} 65.
Rf5 {[%clk 0:00:43.4]} 65... Rh8 {[%clk 0:00:03.5]} 66. Ng2+ {[%clk 0:00:43.7]}
66... Kh3 {[%clk 0:00:04.7]} 67. Rh5+ {[%clk 0:00:44.1]} 67... Rxh5 {[%clk
0:00:06.2]} 68. gxh5 {[%clk 0:00:44.9]} 68... Kh2 {[%clk 0:00:08.1]} 69. h6
{[%clk 0:00:45.7]} 69... Kg1 {[%clk 0:00:10]} 70. h7 {[%clk 0:00:46.3]} 70...
Kf1 {[%clk 0:00:11.3]} 71. Ne3+ {[%clk 0:00:46.4]} 71... Kg1 {[%clk 0:00:13.2]}
72. Kg3 {[%clk 0:00:45.8]} 72... Kh1 {[%clk 0:00:13.5]} 73. h8=R+ {[%clk
0:00:45.7]} 73... Kg1 {[%clk 0:00:15.4]} 74. Ng4 {[%clk 0:00:44.3]} 74... Kf1
{[%clk 0:00:16.3]} 75. Rh2 {[%clk 0:00:43.2]} 75... Kg1 {[%clk 0:00:18.2]} 76.
Rg2+ {[%clk 0:00:42.5]} 76... Kf1 {[%clk 0:00:20.1]} 77. Kf3 {[%clk 0:00:40.9]}
77... Ke1 {[%clk 0:00:22]} 78. Rf2 {[%clk 0:00:40.3]} 78... Kd1 {[%clk
0:00:23.9]} 79. Ke3 {[%clk 0:00:40]} 79... Kc1 {[%clk 0:00:25.8]} 80. Rd2 {[%clk
0:00:40.2]} 80... Kb1 {[%clk 0:00:26.7]} 81. Kd3 {[%clk 0:00:40.7]} 81... Kc1
{[%clk 0:00:28.6]} 82. Kc3 {[%clk 0:00:41]} 82... Kb1 {[%clk 0:00:30.5]} 83. Rc2
{[%clk 0:00:40.8]} 83... Ka1 {[%clk 0:00:32]} 84. Kb3 {[%clk 0:00:41.6]} 84...
Kb1 {[%clk 0:00:33.9]} 85. Nh6 {[%clk 0:00:40.1]} 85... Ka1 {[%clk 0:00:35.8]}
86. Nf7 {[%clk 0:00:40.7]} 86... Kb1 {[%clk 0:00:37.7]} 87. Nh8 {[%clk
0:00:41.5]} 87... Ka1 {[%clk 0:00:39.6]} 88. Rc1# {[%clk 0:00:41.2]} 1-0

[Event "*** Titled Tuesday Blitz"]
[Site "Chess.com"]
[Date "2018.01.02"]
[Round "3"]
[White "RaphaeI"]
[Black "grzechu96"]
[Result "0-1"]
[WhiteElo "2491"]
[BlackElo "2452"]
[TimeControl "180+2"]
[EndTime "13:41:19 PST"]
[Termination "grzechu96 won on time"]

1. d4 {[%clk 0:03:01.1]} 1... Nf6 {[%clk 0:03:00.6]} 2. c4 {[%clk 0:03:01.7]}
2... g6 {[%clk 0:03:02.2]} 3. Nc3 {[%clk 0:03:02.7]} 3... d5 {[%clk 0:03:03.6]}
4. cxd5 {[%clk 0:03:03.7]} 4... Nxd5 {[%clk 0:03:05.5]} 5. e4 {[%clk 0:03:05.6]}
5... Nxc3 {[%clk 0:03:07]} 6. bxc3 {[%clk 0:03:07.5]} 6... Bg7 {[%clk
0:03:08.6]} 7. Bc4 {[%clk 0:03:08.4]} 7... c5 {[%clk 0:03:09.6]} 8. Ne2 {[%clk
0:03:10]} 8... Nc6 {[%clk 0:03:11.3]} 9. Be3 {[%clk 0:03:11.6]} 9... O-O {[%clk
0:03:12.5]} 10. O-O {[%clk 0:03:13.2]} 10... Qc7 {[%clk 0:03:13.3]} 11. Rc1
{[%clk 0:03:12.1]} 11... b6 {[%clk 0:03:14.6]} 12. Qd2 {[%clk 0:03:12.1]} 12...
Bb7 {[%clk 0:03:05.4]} 13. Bh6 {[%clk 0:03:11.8]} 13... Rad8 {[%clk 0:02:53.6]}
14. Bxg7 {[%clk 0:03:02.4]} 14... Kxg7 {[%clk 0:02:55.5]} 15. Qe3 {[%clk
0:03:04]} 15... Na5 {[%clk 0:02:53.6]} 16. Bd3 {[%clk 0:03:01.2]} 16... e5
{[%clk 0:02:54.6]} 17. d5 {[%clk 0:02:07.3]} 17... c4 {[%clk 0:02:53.7]} 18. Bc2
{[%clk 0:02:05.2]} 18... Bc8 {[%clk 0:02:55]} 19. f4 {[%clk 0:02:02.3]} 19... f6
{[%clk 0:02:52.1]} 20. Rf2 {[%clk 0:01:35.6]} 20... Nb7 {[%clk 0:02:49.1]} 21.
Rcf1 {[%clk 0:01:34.4]} 21... exf4 {[%clk 0:02:43.2]} 22. Nxf4 {[%clk
0:01:30.9]} 22... Qe5 {[%clk 0:02:38.8]} 23. h4 {[%clk 0:00:57.3]} 23... Nd6
{[%clk 0:01:47.8]} 24. h5 {[%clk 0:00:55.7]} 24... g5 {[%clk 0:01:48.9]} 25. Ne2
{[%clk 0:00:52.4]} 25... h6 {[%clk 0:01:49.3]} 26. Nd4 {[%clk 0:00:48.5]} 26...
Bd7 {[%clk 0:01:48.5]} 27. Nf3 {[%clk 0:00:46.5]} 27... Qe7 {[%clk 0:01:43.3]}
28. e5 {[%clk 0:00:47.7]} 28... fxe5 {[%clk 0:01:42.8]} 29. Qxe5+ {[%clk
0:00:23.9]} 29... Qxe5 {[%clk 0:01:39]} 30. Nxe5 {[%clk 0:00:25.8]} 30... Rxf2
{[%clk 0:01:11.4]} 31. Rxf2 {[%clk 0:00:27.7]} 31... Be8 {[%clk 0:01:12]} 32.
Nc6 {[%clk 0:00:14.6]} 32... Bxc6 {[%clk 0:01:06.2]} 33. dxc6 {[%clk 0:00:16.5]}
33... Rc8 {[%clk 0:01:07.4]} 34. Re2 {[%clk 0:00:18.1]} 34... Kf6 {[%clk
0:00:53.9]} 35. Rf2+ {[%clk 0:00:11.3]} 35... Ke5 {[%clk 0:00:54.9]} 36. Re2+
{[%clk 0:00:12.7]} 36... Kd5 {[%clk 0:00:55.9]} 37. Rf2 {[%clk 0:00:12.9]} 37...
Kxc6 {[%clk 0:00:30.5]} 38. Rf6 {[%clk 0:00:13.9]} 38... Rh8 {[%clk 0:00:32.1]}
39. Kf2 {[%clk 0:00:13.8]} 39... b5 {[%clk 0:00:32.8]} 40. Ke3 {[%clk 0:00:15]}
40... Kd7 {[%clk 0:00:31.9]} 41. Kd4 {[%clk 0:00:14.5]} 41... Ke7 {[%clk
0:00:33.1]} 42. Rg6 {[%clk 0:00:16]} 42... Nf7 {[%clk 0:00:30.7]} 43. a4 {[%clk
0:00:14.1]} 43... Rd8+ {[%clk 0:00:27.8]} 44. Kc5 {[%clk 0:00:14.9]} 44... bxa4
{[%clk 0:00:27]} 45. Bxa4 {[%clk 0:00:16.8]} 45... Rd6 {[%clk 0:00:23.9]} 46.
Rg8 {[%clk 0:00:12.8]} 46... Rd2 {[%clk 0:00:18.8]} 47. Bc6 {[%clk 0:00:12]}
47... Rc2 {[%clk 0:00:09.1]} 48. Bd5 {[%clk 0:00:11.1]} 48... Ne5 {[%clk
0:00:07.7]} 49. Kd4 {[%clk 0:00:09.8]} 49... Ng4 {[%clk 0:00:07.7]} 50. Rg7+
{[%clk 0:00:09.4]} 50... Kf6 {[%clk 0:00:08.8]} 51. Rxa7 {[%clk 0:00:11.3]}
51... Rd2+ {[%clk 0:00:08.9]} 52. Kc5 {[%clk 0:00:11.1]} 52... Ke5 {[%clk
0:00:10]} 53. Re7+ {[%clk 0:00:11.5]} 53... Kf4 {[%clk 0:00:11.5]} 54. Re6
{[%clk 0:00:10.5]} 54... Kg3 {[%clk 0:00:09.1]} 55. Bf3 {[%clk 0:00:08.5]} 55...
Nh2 {[%clk 0:00:05]} 56. Bc6 {[%clk 0:00:07.4]} 56... Ng4 {[%clk 0:00:05.6]} 57.
Kxc4 {[%clk 0:00:07.8]} 57... Kf4 {[%clk 0:00:05.2]} 58. Kb3 {[%clk 0:00:06.6]}
58... Kf5 {[%clk 0:00:06.5]} 59. Re8 {[%clk 0:00:06.4]} 59... Nf6 {[%clk
0:00:07.9]} 60. Rc8 {[%clk 0:00:06.3]} 60... Nxh5 {[%clk 0:00:08.8]} 61. Bf3
{[%clk 0:00:05.8]} 61... Nf4 {[%clk 0:00:09.9]} 62. c4 {[%clk 0:00:06.4]} 62...
Nxg2 {[%clk 0:00:10.8]} 63. Kb4 {[%clk 0:00:06.1]} 63... Ne1 {[%clk 0:00:11.2]}
64. Bb7 {[%clk 0:00:06]} 64... Nd3+ {[%clk 0:00:12.1]} 65. Kb5 {[%clk
0:00:06.8]} 65... Rb2+ {[%clk 0:00:13.2]} 66. Ka6 {[%clk 0:00:07.1]} 66... g4
{[%clk 0:00:06.5]} 67. Rf8+ {[%clk 0:00:07.4]} 67... Kg5 {[%clk 0:00:05.7]} 68.
Rg8+ {[%clk 0:00:08.7]} 68... Kf4 {[%clk 0:00:07.3]} 69. Bd5 {[%clk 0:00:07.6]}
69... Nb4+ {[%clk 0:00:06.5]} 70. Ka5 {[%clk 0:00:08.6]} 70... Nxd5 {[%clk
0:00:08]} 71. cxd5 {[%clk 0:00:10.5]} 71... Rd2 {[%clk 0:00:09.5]} 72. Rd8
{[%clk 0:00:09]} 72... g3 {[%clk 0:00:10.4]} 73. Kb6 {[%clk 0:00:10.5]} 73... g2
{[%clk 0:00:11.6]} 74. Rg8 {[%clk 0:00:11.6]} 74... Kf3 {[%clk 0:00:11.5]} 75.
Kc6 {[%clk 0:00:10.7]} 75... h5 {[%clk 0:00:12.5]} 76. Rf8+ {[%clk 0:00:11.8]}
76... Ke2 {[%clk 0:00:13]} 77. Rg8 {[%clk 0:00:12.5]} 77... Kf1 {[%clk
0:00:14.3]} 78. Rf8+ {[%clk 0:00:13.8]} 78... Rf2 {[%clk 0:00:15.6]} 0-1